fUST/lending_fUST_20250410
["ID","MTS","AMOUNT","RATE_DAILY","PERIOD"]
[357668212,1744300241187,-500.0,0.00016438,2]
[357668213,1744300241197,-1103.24,0.00016438,2]
[357668214,1744300241208,-500.0,0.00016438,2]
[357668215,1744300241219,-2213.05,0.00016438,2]
[357668216,1744300241230,-500.0,0.00016438,2]
[357668217,1744300241243,-500.0,0.00016438,2]
[357668218,1744300241253,-608.26,0.00016438,2]
[357668219,1744300241263,-500.0,0.00016438,2]
[357668220,1744300241275,-500.0,0.00016438,2]
[357668221,1744300241289,-500.0,0.00016438,2]
[357668222,1744300241299,-715.59,0.00016438,2]
[357668223,1744300241309,-2202.49,0.00016438,2]
[357668224,1744300241321,-500.0,0.00016438,2]
[357668225,1744300241332,-812.66,0.00016438,2]
[357668226,1744300241342,-717.83,0.00016438,2]
[357668227,1744300241352,-500.0,0.00016438,2]
[357668228,1744300241362,-362.28420751,0.00016438,2]
[357668229,1744300241373,-216.463251,0.00016438,2]
[357668230,1744300241383,-1388.6,0.00016438,2]
[357668231,1744300241393,-500.0,0.00016438,2]
[357668232,1744300241403,-500.0,0.00016438,2]
[357668233,1744300241412,-517.4333246,0.00016438,2]
[357668234,1744300241422,-500.0,0.00016438,2]
[357668235,1744300241432,-576.53,0.00016438,2]
[357668236,1744300241442,-626.3,0.00016438,2]
[357668237,1744300241451,-666.88,0.00016438,2]
[357668238,1744300241461,-972.81,0.00016438,2]
[357668239,1744300241471,-500.0,0.00016438,2]
[357668240,1744300241481,-500.0,0.00016438,2]
[357668241,1744300241491,-500.0,0.00016438,2]
[357668242,1744300241501,-500.0,0.00016438,2]
[357668243,1744300241510,-3673.5,0.00016438,2]
[357668244,1744300241520,-500.0,0.00016438,2]
[357668245,1744300241529,-500.0,0.00016438,2]
[357668246,1744300241543,-500.0,0.00016438,2]
[357668247,1744300241552,-500.0,0.00016438,2]
[357668248,1744300241562,-507.33642948,0.00016438,2]
[357668249,1744300241572,-500.0,0.00016438,2]
[357668250,1744300241581,-3705.64,0.00016438,2]
[357668251,1744300241591,-500.0,0.00016438,2]
[357668252,1744300241601,-500.0,0.00016438,2]
[357668253,1744300241611,-500.0,0.00016438,2]
[357668254,1744300241620,-500.0,0.00016438,2]
[357668255,1744300241630,-639.10377433,0.00016438,2]
[357668256,1744300241640,-919.89,0.00016438,2]
[357668257,1744300241650,-500.0,0.00016438,2]
[357668258,1744300241660,-500.0,0.00016438,2]
[357668259,1744300241669,-811.66,0.00016438,2]
[357668260,1744300241679,-500.0,0.00016438,2]
[357668261,1744300241689,-1090.73,0.00016438,2]
[357668262,1744300241698,-500.0,0.00016438,2]
[357668263,1744300241709,-374.71704225,0.00016438,2]
[357668265,1744300241719,-641.86328981,0.00016438,2]
[357668267,1744300241729,-500.0,0.00016438,2]
[357668268,1744300241739,-500.0,0.00016438,2]
[357668269,1744300241748,-151.0,0.00016438,2]
[357668270,1744300241758,-151.0,0.00016438,2]
[357668271,1744300241767,-500.0,0.00016438,2]
[357668272,1744300241777,-500.0,0.00016438,2]
[357668273,1744300241790,-500.0,0.00016438,2]
[357668274,1744300241799,-3893.24,0.00016438,2]
[357668275,1744300241814,-500.0,0.00016438,2]
[357668276,1744300241825,-1572.83,0.00016438,2]
[357668277,1744300241834,-870.15,0.00016438,2]
[357668278,1744300241844,-500.0,0.00016438,2]
[357668279,1744300241854,-500.0,0.00016438,2]
[357668280,1744300241864,-500.0,0.00016438,2]
[357668281,1744300241876,-500.0,0.00016438,2]
[357668282,1744300242038,-500.0,0.00016438,2]
[357668283,1744300242049,-1614.27,0.00016438,2]
[357668284,1744300242060,-7690.72,0.00016438,2]
[357668285,1744300242070,-1269.32,0.00016438,2]
[357668286,1744300242080,-500.0,0.00016438,2]
[357668287,1744300242090,-527.55,0.00016438,2]
[357668288,1744300242100,-1241.43,0.00016438,2]
[357668289,1744300242110,-500.0,0.00016438,2]
[357668290,1744300242121,-500.0,0.00016438,2]
[357668291,1744300242131,-500.0,0.00016438,2]
[357668292,1744300242142,-500.0,0.00016438,2]
[357668293,1744300242152,-768.22,0.00016438,2]
[357668294,1744300242162,-500.0,0.00016438,2]
[357668295,1744300242172,-151.0,0.00016438,2]
[357668296,1744300242182,-500.0,0.00016438,2]
[357668297,1744300242192,-151.0,0.00016438,2]
[357668298,1744300242201,-151.0,0.00016438,2]
[357668299,1744300242211,-151.0,0.00016438,2]
[357668300,1744300242221,-557.86,0.00016438,2]
[357668301,1744300242232,-557.86,0.00016438,2]
[357668302,1744300242246,-500.0,0.00016438,2]
[357668303,1744300242257,-500.0,0.00016438,2]
[357668304,1744300242267,-500.0,0.00016438,2]
[357668305,1744300242278,-500.0,0.00016438,2]
[357668306,1744300242290,-500.0,0.00016438,2]
[357668307,1744300242300,-500.0,0.00016438,2]
[357668308,1744300242310,-822.41,0.00016438,2]
[357668309,1744300242321,-257.27881469,0.00016438,2]
[357668310,1744300242331,-500.0,0.00016438,2]
[357668311,1744300242341,-500.0,0.00016438,2]
[357668312,1744300242350,-500.0,0.00016438,2]
[357668313,1744300242360,-500.0,0.00016438,2]
[357668314,1744300242370,-500.0,0.00016438,2]
[357668315,1744300242380,-500.0,0.00016438,2]
[357668316,1744300242389,-500.0,0.00016438,2]
[357668317,1744300242398,-500.0,0.00016438,2]
[357668318,1744300242408,-500.0,0.00016438,2]
[357668319,1744300242418,-682.0,0.00016438,2]
[357668320,1744300242427,-500.0,0.00016438,2]
[357668321,1744300242437,-500.0,0.00016438,2]
[357668322,1744300242447,-500.0,0.00016438,2]
[357668323,1744300242456,-500.0,0.00016438,2]
[357668324,1744300242465,-2791.72,0.00016438,2]
[357668325,1744300242475,-500.0,0.00016438,2]
[357668326,1744300242485,-500.0,0.00016438,2]
[357668327,1744300242495,-500.0,0.00016438,2]
[357668328,1744300242504,-500.0,0.00016438,2]
[357668329,1744300242514,-500.0,0.00016438,2]
[357668330,1744300242524,-534.02,0.00016438,2]
[357668331,1744300242536,-825.07,0.00016438,2]
[357668332,1744300242545,-500.0,0.00016438,2]
[357668333,1744300242555,-151.0,0.00016438,2]
[357668334,1744300242564,-500.0,0.00016438,2]
[357668335,1744300242574,-154.030535,0.00016438,2]
[357668336,1744300242583,-500.0,0.00016438,2]
[357668337,1744300242593,-500.0,0.00016438,2]
[357668338,1744300242602,-3189.92,0.00016438,2]
[357668339,1744300242612,-500.0,0.00016438,2]
[357668340,1744300242622,-502.65507841,0.00016438,2]
[357668341,1744300242631,-600.3,0.00016438,2]
[357668342,1744300242641,-500.0,0.00016438,2]
[357668343,1744300242650,-500.0,0.00016438,2]
[357668344,1744300242660,-500.0,0.00016438,2]
[357668345,1744300242669,-537.0,0.00016438,2]
[357668346,1744300242679,-500.0,0.00016438,2]
[357668347,1744300242688,-1038.42,0.00016438,2]
[357668348,1744300242698,-500.0,0.00016438,2]
[357668349,1744300242708,-631.35,0.00016438,2]
[357668350,1744300242718,-1235.98,0.00016438,2]
[357668351,1744300242727,-500.0,0.00016438,2]
[357668352,1744300242737,-500.0,0.00016438,2]
[357668353,1744300242746,-500.19998697,0.00016438,2]
[357668354,1744300242756,-151.0,0.00016438,2]
[357668355,1744300242766,-151.0,0.00016438,2]
[357668356,1744300242776,-151.0,0.00016438,2]
[357668357,1744300242786,-500.0,0.00016438,2]
[357668358,1744300242795,-1849.08,0.00016438,2]
[357668359,1744300242805,-500.0,0.00016438,2]
[357668360,1744300242815,-151.0,0.00016438,2]
[357668361,1744300242825,-340.226135,0.00016438,2]
[357668362,1744300242834,-151.0,0.00016438,2]
[357668363,1744300242844,-340.226135,0.00016438,2]
[357668364,1744300242854,-500.0,0.00016438,2]
[357668365,1744300242863,-340.226135,0.00016438,2]
[357668366,1744300242872,-340.226135,0.00016438,2]
[357668367,1744300242882,-340.226135,0.00016438,2]
[357668368,1744300242891,-1397.25,0.00016438,2]
[357668369,1744300242900,-500.0,0.00016438,2]
[357668370,1744300242910,-500.0,0.00016438,2]
[357668371,1744300242920,-500.0,0.00016438,2]
[357668372,1744300242929,-500.0,0.00016438,2]
[357668373,1744300242939,-500.0,0.00016438,2]
[357668374,1744300242949,-500.0,0.00016438,2]
[357668375,1744300242958,-500.0,0.00016438,2]
[357668376,1744300242968,-1474.15,0.00016438,2]
[357668377,1744300242978,-500.0,0.00016438,2]
[357668378,1744300242999,-525.06,0.00016438,2]
[357668379,1744300243014,-500.0,0.00016438,2]
[357668380,1744300243025,-500.0,0.00016438,2]
[357668381,1744300243039,-500.0,0.00016438,2]
[357668382,1744300243050,-1471.61,0.00016438,2]
[357668383,1744300243061,-686.07,0.00016438,2]
[357668384,1744300243071,-350.51234022,0.00016438,2]
[357668385,1744300243082,-891.37,0.00016438,2]
[357668386,1744300243092,-500.0,0.00016438,2]
[357668388,1744300243102,-500.0,0.00016438,2]
[357668390,1744300243113,-500.0,0.00016438,2]
[357668392,1744300243123,-449.7067808,0.00016438,2]
[357668394,1744300243133,-500.0,0.00016438,2]
[357668396,1744300243144,-1621.01,0.00016438,2]
[357668397,1744300243154,-1621.01,0.00016438,2]
[357668399,1744300243166,-1621.01,0.00016438,2]
[357668400,1744300243179,-1621.01,0.00016438,2]
[357668401,1744300243190,-1026.26,0.00016438,2]
[357668402,1744300243201,-1621.01,0.00016438,2]
[357668405,1744300243212,-1621.01,0.00016438,2]
[357668409,1744300243223,-1621.01,0.00016438,2]
[357668412,1744300243239,-1621.01,0.00016438,2]
[357668414,1744300243249,-1621.01,0.00016438,2]
[357668416,1744300243261,-1621.01,0.00016438,2]
[357668418,1744300243273,-1621.01,0.00016438,2]
[357668420,1744300243286,-151.0,0.00016438,2]
[357668421,1744300243296,-1621.01,0.00016438,2]
[357668422,1744300243307,-151.0,0.00016438,2]
[357668423,1744300243317,-1621.01,0.00016438,2]
[357668424,1744300243327,-151.0,0.00016438,2]
[357668425,1744300243338,-1621.01,0.00016438,2]
[357668426,1744300243348,-1621.01,0.00016438,2]
[357668427,1744300243358,-151.0,0.00016438,2]
[357668428,1744300243368,-500.0,0.00016438,2]
[357668429,1744300243378,-1621.01,0.00016438,2]
[357668430,1744300243389,-500.0,0.00016438,2]
[357668431,1744300243400,-1621.01,0.00016438,2]
[357668432,1744300243410,-500.0,0.00016438,2]
[357668433,1744300243421,-1621.01,0.00016438,2]
[357668435,1744300243432,-503.99022656,0.00016438,2]
[357668436,1744300243442,-1621.01,0.00016438,2]
[357668438,1744300243452,-1621.01,0.00016438,2]
[357668440,1744300243463,-1621.01,0.00016438,2]
[357668441,1744300243473,-1621.01,0.00016438,2]
[357668442,1744300243484,-1621.01,0.00016438,2]
[357668443,1744300243494,-1621.09922022,0.00016438,2]
[357668445,1744300243504,-689.43,0.00016438,2]
[357668446,1744300243515,-681.06,0.00016438,2]
[357668447,1744300243525,-262.484311,0.00016438,2]
[357668448,1744300243537,-549.149871,0.00016438,2]
[357668449,1744300243547,-549.149871,0.00016438,2]
[357668450,1744300243557,-549.149871,0.00016438,2]
[357668451,1744300243568,-549.149871,0.00016438,2]
[357668452,1744300243578,-549.149871,0.00016438,2]
[357668453,1744300243588,-549.149871,0.00016438,2]
[357668454,1744300243599,-549.149871,0.00016438,2]
[357668455,1744300243616,-549.149871,0.00016438,2]
[357668456,1744300243627,-549.149871,0.00016438,2]
[357668457,1744300243638,-549.149871,0.00016438,2]
[357668458,1744300243649,-549.149871,0.00016438,2]
[357668459,1744300243659,-549.149871,0.00016438,2]
[357668460,1744300243670,-549.149871,0.00016438,2]
[357668461,1744300243681,-549.149871,0.00016438,2]
[357668462,1744300243691,-549.149871,0.00016438,2]
[357668463,1744300243701,-510.98493755,0.00016438,2]
[357668464,1744300243712,-549.149871,0.00016438,2]
[357668465,1744300243722,-549.149871,0.00016438,2]
[357668466,1744300243733,-549.149871,0.00016438,2]
[357668467,1744300243744,-2181.37,0.00016438,2]
[357668468,1744300243755,-500.0,0.00016438,2]
[357668469,1744300243766,-549.149871,0.00016438,2]
[357668470,1744300243776,-549.1498737,0.00016438,2]
[357668471,1744300243788,-500.0,0.00016438,2]
[357668472,1744300243798,-500.0,0.00016438,2]
[357668473,1744300243809,-203.38860773,0.00016438,2]
[357668474,1744300243820,-500.0,0.00016438,2]
[357668475,1744300243830,-881.94,0.00016438,2]
[357668476,1744300243841,-500.0,0.00016438,2]
[357668477,1744300243851,-500.0,0.00016438,2]
[357668478,1744300243861,-1319.42,0.00016438,2]
[357668479,1744300243872,-500.0,0.00016438,2]
[357668480,1744300243882,-500.0,0.00016438,2]
[357668481,1744300243893,-5476.67,0.00016438,2]
[357668482,1744300243903,-500.0,0.00016438,2]
[357668483,1744300243914,-500.0,0.00016438,2]
[357668484,1744300243924,-500.0,0.00016438,2]
[357668485,1744300243935,-500.0,0.00016438,2]
[357668486,1744300243945,-500.0,0.00016438,2]
[357668487,1744300243955,-1388.61,0.00016438,2]
[357668488,1744300243966,-629.87616444,0.00016438,2]
[357668489,1744300243976,-3649.94,0.00016438,2]
[357668490,1744300243986,-500.0,0.00016438,2]
[357668491,1744300243996,-500.0,0.00016438,2]
[357668492,1744300244006,-500.0,0.00016438,2]
[357668493,1744300244017,-1845.58,0.00016438,2]
[357668494,1744300244028,-500.0,0.00016438,2]
[357668495,1744300244040,-500.0,0.00016438,2]
[357668496,1744300244051,-3642.34,0.00016438,2]
[357668498,1744300244061,-500.0,0.00016438,2]
[357668500,1744300244072,-500.0,0.00016438,2]
[357668502,1744300244082,-4467.15,0.00016438,2]
[357668504,1744300244093,-500.0,0.00016438,2]
[357668506,1744300244104,-500.0,0.00016438,2]
[357668508,1744300244114,-538.29,0.00016438,2]
[357668510,1744300244125,-500.0,0.00016438,2]
[357668512,1744300244135,-500.0,0.00016438,2]
[357668514,1744300244145,-500.0,0.00016438,2]
[357668516,1744300244155,-1376.93,0.00016438,2]
[357668518,1744300244166,-500.0,0.00016438,2]
[357668520,1744300244175,-500.0,0.00016438,2]
[357668522,1744300244185,-1377.93,0.00016438,2]
[357668524,1744300244196,-500.0,0.00016438,2]
[357668526,1744300244206,-1117.0,0.00016438,2]
[357668528,1744300244220,-1101.06,0.00016438,2]
[357668534,1744300244407,-500.0,0.00016438,2]
[357668536,1744300244418,-501.8104562,0.00016438,2]
[357668538,1744300244428,-500.0,0.00016438,2]
[357668539,1744300244437,-568.11,0.00016438,2]
[357668540,1744300244447,-500.0,0.00016438,2]
[357668541,1744300244457,-500.0,0.00016438,2]
[357668542,1744300244467,-1504.88,0.00016438,2]
[357668543,1744300244477,-1014.54,0.00016438,2]
[357668544,1744300244487,-500.0,0.00016438,2]
[357668545,1744300244498,-500.0,0.00016438,2]
[357668546,1744300244508,-901.69,0.00016438,2]
[357668547,1744300244518,-500.0,0.00016438,2]
[357668548,1744300244528,-500.0,0.00016438,2]
[357668549,1744300244546,-500.0,0.00016438,2]
[357668550,1744300244560,-500.0,0.00016438,2]
[357668551,1744300244571,-500.0,0.00016438,2]
[357668552,1744300244581,-500.0,0.00016438,2]
[357668553,1744300244591,-500.0,0.00016438,2]
[357668554,1744300244601,-500.0,0.00016438,2]
[357668555,1744300244610,-500.0,0.00016438,2]
[357668556,1744300244621,-500.0,0.00016438,2]
[357668557,1744300244631,-2400.77,0.00016438,2]
[357668558,1744300244641,-500.0,0.00016438,2]
[357668559,1744300244652,-500.0,0.00016438,2]
[357668560,1744300244663,-151.0,0.00016438,2]
[357668561,1744300244673,-500.0,0.00016438,2]
[357668562,1744300244683,-151.0,0.00016438,2]
[357668563,1744300244693,-2555.47,0.00016438,2]
[357668564,1744300244703,-151.0,0.00016438,2]
[357668565,1744300244713,-1063.49,0.00016438,2]
[357668566,1744300244723,-151.0,0.00016438,2]
[357668567,1744300244732,-151.0,0.00016438,2]
[357668568,1744300244742,-500.0,0.00016438,2]
[357668569,1744300244753,-500.0,0.00016438,2]
[357668570,1744300244763,-151.0,0.00016438,2]
[357668571,1744300244774,-1752.28,0.00016438,2]
[357668572,1744300244784,-796.1,0.00016438,2]
[357668573,1744300244799,-469.56555356,0.00016438,2]
[357668574,1744300244810,-500.0,0.00016438,2]
[357668575,1744300244821,-151.0,0.00016438,2]
[357668576,1744300244833,-151.0,0.00016438,2]
[357668577,1744300244843,-151.0,0.00016438,2]
[357668578,1744300244854,-151.0,0.00016438,2]
[357668579,1744300244864,-500.0,0.00016438,2]
[357668580,1744300244875,-151.0,0.00016438,2]
[357668581,1744300244885,-151.0,0.00016438,2]
[357668582,1744300244895,-183.675348,0.00016438,2]
[357668583,1744300244905,-158.29505,0.00016438,2]
[357668584,1744300244915,-500.0,0.00016438,2]
[357668585,1744300244925,-500.0,0.00016438,2]
[357668586,1744300244935,-1204.84,0.00016438,2]
[357668587,1744300244945,-500.0,0.00016438,2]
[357668588,1744300244956,-1002.38160098,0.00016438,2]
[357668589,1744300244966,-500.0,0.00016438,2]
[357668590,1744300244976,-500.0,0.00016438,2]
[357668591,1744300244986,-500.0,0.00016438,2]
[357668592,1744300244997,-3796.42,0.00016438,2]
[357668593,1744300245007,-503.94513521,0.00016438,2]
[357668594,1744300245017,-500.0,0.00016438,2]
[357668595,1744300245027,-500.0,0.00016438,2]
[357668596,1744300245039,-151.0,0.00016438,2]
[357668597,1744300245049,-151.0,0.00016438,2]
[357668598,1744300245059,-500.0,0.00016438,2]
[357668599,1744300245082,-151.0,0.00016438,2]
[357668600,1744300245094,-1385.21,0.00016438,2]
[357668601,1744300245105,-151.0,0.00016438,2]
[357668602,1744300245117,-500.0,0.00016438,2]
[357668603,1744300245128,-15033.92,0.00016438,2]
[357668604,1744300245139,-2751.37,0.00016438,2]
[357668605,1744300245150,-500.0,0.00016438,2]
[357668606,1744300245161,-500.0,0.00016438,2]
[357668607,1744300245171,-526.34329619,0.00016438,2]
[357668608,1744300245182,-520.43,0.00016438,2]
[357668609,1744300245193,-500.0,0.00016438,2]
[357668610,1744300245203,-500.0,0.00016438,2]
[357668611,1744300245214,-500.0,0.00016438,2]
[357668612,1744300245225,-239.479358,0.00016438,2]
[357668613,1744300245237,-500.0,0.00016438,2]
[357668614,1744300245250,-500.0,0.00016438,2]
[357668615,1744300245260,-500.0,0.00016438,2]
[357668616,1744300245271,-564.26,0.00016438,2]
[357668617,1744300245283,-5062.36666198,0.00016438,2]
[357668619,1744300245716,-293.33861973,0.00016438,2]
[357668638,1744300247196,-1183.38925606,0.00016438,2]
[357668639,1744300247959,-651.45546223,0.00016438,2]
[357668640,1744300247969,-500.0,0.00016438,2]
[357668641,1744300247979,-430.48644225,0.00016438,2]
[357668642,1744300247996,-69.51355775,0.00016438,2]
[357668643,1744300248006,-947.88,0.00016438,2]
[357668644,1744300248016,-220.33518761,0.00016438,2]
[357668645,1744300249002,-200.0,0.00016428,2]
[357668646,1744300249017,-574.056639,0.00016438,2]
[357668647,1744300249031,-182.64817339,0.00016438,2]
[357668648,1744300249044,-500.0,0.00016438,2]
[357668649,1744300249055,-322.80085035,0.00016438,2]
[357668650,1744300249075,-177.19914965,0.00016438,2]
[357668651,1744300249086,-500.0,0.00016438,2]
[357668652,1744300249098,-7039.47,0.00016438,2]
[357668653,1744300249109,-550.69313035,0.00016438,2]
[357668654,1744300249122,-500.0,0.00016438,2]
[357668655,1744300249138,-1054.45,0.00016438,2]
[357668656,1744300249150,-500.0,0.00016438,2]
[357668657,1744300249161,-500.0,0.00016438,2]
[357668658,1744300249172,-3681.79,0.00016438,2]
[357668659,1744300249184,-500.0,0.00016438,2]
[357668660,1744300249198,-500.0,0.00016438,2]
[357668661,1744300249216,-500.0,0.00016438,2]
[357668662,1744300249228,-500.0,0.00016438,2]
[357668663,1744300249247,-500.0,0.00016438,2]
[357668664,1744300249259,-500.0,0.00016438,2]
[357668665,1744300249273,-500.0,0.00016438,2]
[357668666,1744300249284,-1473.73,0.00016438,2]
[357668667,1744300249297,-1473.73,0.00016438,2]
[357668668,1744300249309,-500.0,0.00016438,2]
[357668669,1744300249322,-1473.73,0.00016438,2]
[357668670,1744300249334,-1473.73,0.00016438,2]
[357668671,1744300249345,-750.4,0.00016438,2]
[357668672,1744300249356,-1473.73,0.00016438,2]
[357668673,1744300249367,-1473.73,0.00016438,2]
[357668674,1744300249377,-1473.73,0.00016438,2]
[357668675,1744300249388,-1455.92,0.00016438,2]
[357668676,1744300249399,-1473.73,0.00016438,2]
[357668677,1744300249410,-555.43699911,0.00016438,2]
[357668678,1744300249421,-500.0,0.00016438,2]
[357668679,1744300249432,-1473.73,0.00016438,2]
[357668680,1744300249443,-1473.73,0.00016438,2]
[357668681,1744300249453,-1473.73,0.00016438,2]
[357668682,1744300249464,-732.0,0.00016438,2]
[357668683,1744300249475,-1473.73,0.00016438,2]
[357668684,1744300249485,-1473.73,0.00016438,2]
[357668685,1744300249496,-1473.73,0.00016438,2]
[357668686,1744300249507,-1473.73,0.00016438,2]
[357668687,1744300249518,-500.0,0.00016438,2]
[357668688,1744300249528,-500.0,0.00016438,2]
[357668689,1744300249539,-1473.73,0.00016438,2]
[357668690,1744300249553,-1473.73,0.00016438,2]
[357668691,1744300249563,-1473.73,0.00016438,2]
[357668692,1744300249575,-1473.73,0.00016438,2]
[357668693,1744300249585,-500.0,0.00016438,2]
[357668694,1744300249595,-1097.13,0.00016438,2]
[357668695,1744300249606,-1473.73,0.00016438,2]
[357668696,1744300249617,-4622.35,0.00016438,2]
[357668697,1744300249628,-1473.73,0.00016438,2]
[357668698,1744300249639,-1473.73,0.00016438,2]
[357668699,1744300249649,-527.55,0.00016438,2]
[357668700,1744300249659,-1473.73,0.00016438,2]
[357668701,1744300249670,-1473.75598409,0.00016438,2]
[357668702,1744300249680,-338.75791827,0.00016438,2]
[357668703,1744300249697,-161.24208173,0.00016438,2]
[357668704,1744300249707,-500.0,0.00016438,2]
[357668705,1744300249718,-917.26,0.00016438,2]
[357668706,1744300249728,-500.0,0.00016438,2]
[357668707,1744300249739,-1435.32,0.00016438,2]
[357668708,1744300249749,-155.28608585,0.00016438,2]
[357668709,1744300249759,-722.31,0.00016438,2]
[357668710,1744300249769,-500.0,0.00016438,2]
[357668711,1744300249778,-302.44229482,0.00016438,2]
[357668712,1744300249789,-500.0,0.00016438,2]
[357668713,1744300249801,-500.0,0.00016438,2]
[357668714,1744300249811,-600.6,0.00016438,2]
[357668715,1744300249821,-1300.08,0.00016438,2]
[357668716,1744300249831,-1490.82,0.00016438,2]
[357668717,1744300249845,-500.0,0.00016438,2]
[357668718,1744300249856,-500.0,0.00016438,2]
[357668719,1744300249866,-3860.61,0.00016438,2]
[357668720,1744300249876,-20.27240775,0.00016438,2]
[357668721,1744300249890,-1242.71759225,0.00016438,2]
[357668722,1744300249900,-2429.61,0.00016438,2]
[357668723,1744300249911,-192.07735503,0.00016438,2]
[357668724,1744300249920,-500.0,0.00016438,2]
[357668725,1744300249931,-500.0,0.00016438,2]
[357668726,1744300249943,-636.82,0.00016438,2]
[357668727,1744300249953,-3478.79,0.00016438,2]
[357668728,1744300249963,-15874.25263027,0.00016438,2]
[357668780,1744300269332,209.00002493,0.00015,2]
[357668781,1744300273216,500.0,0.00015,2]
[357668782,1744300273257,500.0,0.00015,2]
[357668783,1744300275791,500.0,0.00015,2]
[357668784,1744300276134,500.0,0.00015,2]
[357668785,1744300276433,500.0,0.00015,2]
[357668786,1744300276475,500.0,0.00015,2]
[357668787,1744300276864,500.0,0.00015,2]
[357668788,1744300277051,500.0,0.00015,2]
[357668789,1744300277110,500.0,0.00015,2]
[357668790,1744300282783,500.0,0.00015,2]
[357668791,1744300283079,500.0,0.00015,2]
[357668792,1744300283122,500.0,0.00015,2]
[357668793,1744300283168,500.0,0.00015,2]
[357668794,1744300283214,500.0,0.00015,2]
[357668795,1744300283250,500.0,0.00015,2]
[357668796,1744300283408,500.0,0.00015,2]
[357668797,1744300283448,500.0,0.00015,2]
[357668798,1744300283490,500.0,0.00015,2]
[357668799,1744300283528,500.0,0.00015,2]
[357668800,1744300283568,500.0,0.00015,2]
[357668801,1744300283608,500.0,0.00015,2]
[357668802,1744300283643,500.0,0.00015,2]
[357668803,1744300283678,500.0,0.00015,2]
[357668804,1744300283718,551.9355556,0.00015,2]
[357668805,1744300283754,500.0,0.00015,2]
[357668806,1744300283790,500.0,0.00015,2]
[357668807,1744300283842,500.0,0.00015,2]
[357668808,1744300283882,500.0,0.00015,2]
[357668809,1744300283962,500.0,0.00015,2]
[357668810,1744300284068,500.0,0.00015,2]
[357668811,1744300284130,500.0,0.00015,2]
[357668812,1744300284218,500.0,0.00015,2]
[357668813,1744300284302,500.0,0.00015,2]
[357668814,1744300284377,500.0,0.00015,2]
[357668815,1744300284451,500.0,0.00015,2]
[357668816,1744300284515,212.58446953,0.00015,2]
[357668817,1744300284583,500.0,0.00015,2]
[357668818,1744300284647,500.0,0.00015,2]
[357668819,1744300284720,500.0,0.00015,2]
[357668820,1744300284784,500.0,0.00015,2]
[357668821,1744300284859,500.0,0.00015,2]
[357668822,1744300284928,500.0,0.00015,2]
[357668823,1744300285015,500.0,0.00015,2]
[357668824,1744300285094,500.0,0.00015,2]
[357668825,1744300285152,500.0,0.00015,2]
[357668826,1744300285199,500.0,0.00015,2]
[357668827,1744300285246,500.0,0.00015,2]